bitfinex-derivatives/quotes_BTCF0:USTF0_20250811
["timestamp","ask_amount","ask_price","bid_price","bid_amount"]
[1754922571820,2.95253791,119950.0,119940.0,0.1145785]
[1754922572022,2.57003198,119950.0,119940.0,0.2055685]
[1754922572221,2.57003198,119950.0,119940.0,0.2314385]
[1754922572222,2.95253791,119950.0,119940.0,0.2314385]
[1754922572423,2.78539391,119950.0,119940.0,0.2314385]
[1754922572621,2.40328798,119950.0,119940.0,0.2314385]
[1754922572921,2.78539391,119950.0,119940.0,0.2314385]
[1754922573719,2.40328798,119950.0,119940.0,0.2314385]
[1754922574119,2.39498225,119950.0,119940.0,0.2886881]
[1754922574315,2.77708818,119950.0,119940.0,0.2886881]
[1754922575017,2.39498225,119950.0,119940.0,0.2886881]
[1754922575222,2.77708818,119950.0,119940.0,0.2886881]
[1754922575815,2.39470225,119950.0,119940.0,0.2886881]
[1754922576023,2.31164065,119950.0,119940.0,0.2886881]
[1754922576222,2.39574225,119950.0,119940.0,0.2886881]
[1754922576427,2.39606225,119950.0,119940.0,0.2886881]
[1754922576617,2.03526225,119950.0,119940.0,0.2886881]
[1754922577020,1.23722225,119950.0,119940.0,0.2886881]
[1754922577215,2.03502225,119950.0,119940.0,0.2886881]
[1754922577620,1.15352065,119950.0,119940.0,0.2886881]
[1754922577817,2.41692818,119950.0,119940.0,0.2886881]
[1754922578018,2.41732818,119950.0,119940.0,0.2886881]
[1754922578418,2.77812818,119950.0,119940.0,0.2886881]
[1754922578918,2.77812818,119950.0,119940.0,0.1719685]
[1754922579123,2.77804753,119950.0,119940.0,0.0834885]
[1754922579326,2.77811929,119950.0,119940.0,0.0834885]
[1754922579623,2.77804753,119950.0,119940.0,0.1152185]
[1754922580518,2.3959416,119950.0,119940.0,0.1152185]
[1754922580719,2.77804753,119950.0,119940.0,0.1152185]
[1754922581120,3.02820963,119950.0,119930.0,0.40919287]
[1754922581320,0.51885498,119940.0,119930.0,0.46658287]
[1754922581624,0.02058055,119940.0,119930.0,0.7914392]
[1754922581925,0.02058055,119940.0,119930.0,0.8486888]
[1754922582126,0.02142055,119940.0,119930.0,0.46658287]
[1754922582327,0.02142055,119940.0,119930.0,0.46668287]
[1754922582925,0.02110055,119940.0,119930.0,0.46768287]
[1754922583127,0.10580905,119940.0,119930.0,0.49941287]
[1754922583423,0.02158055,119940.0,119930.0,0.49941287]
[1754922583726,0.00110055,119940.0,119930.0,0.8815188]
[1754922584326,0.02158055,119940.0,119930.0,0.8815188]
[1754922584625,0.02190055,119940.0,119930.0,0.49941287]
[1754922585226,0.02242055,119940.0,119930.0,0.49941287]
[1754922585424,0.02242055,119940.0,119930.0,0.50981287]
[1754922587023,0.02242055,119940.0,119930.0,0.70443592]
[1754922587829,0.02190055,119940.0,119930.0,0.70443592]
[1754922588818,0.02242055,119940.0,119930.0,0.70443592]
[1754922589023,0.05404055,119940.0,119930.0,0.70443592]
[1754922589227,0.02158055,119940.0,119930.0,0.70443592]
[1754922589526,0.02158055,119940.0,119930.0,0.50981287]
[1754922590132,0.02190055,119940.0,119930.0,0.50981287]
[1754922590327,0.00110055,119940.0,119930.0,0.45256327]
[1754922590530,0.00110055,119940.0,119930.0,0.50981287]
[1754922593126,0.00110055,119940.0,119930.0,0.8919188]
[1754922593422,1.51334,119950.0,119940.0,0.0833885]
[1754922593627,2.31108,119950.0,119940.0,0.2893281]
[1754922594230,2.39562755,119950.0,119940.0,0.2893281]
[1754922594432,2.77805348,119950.0,119940.0,0.2893281]
[1754922594730,2.78005348,119950.0,119940.0,0.2893281]
[1754922594932,2.69667188,119950.0,119940.0,0.2893281]
[1754922595133,2.39794755,119950.0,119940.0,0.2893281]
[1754922595528,2.78005348,119950.0,119940.0,0.2893281]
[1754922595729,2.39652755,119950.0,119940.0,0.2893281]
[1754922595929,2.39794755,119950.0,119940.0,0.2893281]
[1754922597335,2.78005348,119950.0,119940.0,0.2893281]
[1754922597829,2.78005348,119950.0,119940.0,0.3892281]
[1754922598028,2.78005348,119950.0,119940.0,0.3319785]
[1754922598224,2.77998753,119950.0,119940.0,0.3319785]
[1754922598838,2.78006811,119950.0,119940.0,0.3319785]
[1754922599035,2.80981101,119950.0,119940.0,0.3061085]
[1754922599334,2.80971753,119950.0,119940.0,0.3319485]
[1754922600127,2.80911753,119950.0,119940.0,0.3319485]
[1754922601735,2.80911753,119950.0,119940.0,0.1833885]
[1754922602235,2.80911753,119950.0,119940.0,0.1]
[1754922602935,2.97586153,119950.0,119940.0,0.1]
[1754922603335,3.00996153,119950.0,119940.0,0.1]
[1754922604144,2.6278556,119950.0,119940.0,0.1833885]
[1754922604435,3.00996153,119950.0,119940.0,0.1833885]
[1754922604632,2.6278556,119950.0,119940.0,0.1833885]
[1754922604832,3.00996153,119950.0,119940.0,0.1833885]
[1754922605438,2.6278556,119950.0,119940.0,0.1833885]
[1754922605639,3.00996153,119950.0,119940.0,0.2135085]
[1754922606134,3.01005677,119950.0,119940.0,0.3309585]
[1754922606331,3.01006635,119950.0,119940.0,0.1833885]
[1754922606537,3.00996153,119950.0,119940.0,0.3309585]
[1754922606926,3.01005878,119950.0,119940.0,0.3309585]
[1754922607133,3.01092153,119950.0,119940.0,0.3309585]
[1754922607743,2.6288156,119950.0,119940.0,0.2505985]
[1754922607931,3.01092153,119950.0,119940.0,0.3309585]
[1754922608235,3.01102471,119950.0,119940.0,0.3309585]
[1754922608428,3.01102159,119950.0,119940.0,0.3309585]
[1754922608632,2.4620716,119950.0,119940.0,0.3309585]
[1754922608834,2.84428194,119950.0,119940.0,0.24757]
[1754922609038,2.84425433,119950.0,119940.0,0.24757]
[1754922609343,2.84417753,119950.0,119940.0,0.22173]
[1754922610339,2.84417753,119950.0,119940.0,0.3051185]
[1754922611037,2.84417753,119950.0,119940.0,0.3309585]
[1754922612137,2.81936753,119950.0,119940.0,0.3882081]
[1754922612344,2.4669916,119950.0,119940.0,0.3882081]
[1754922612533,2.81927295,119950.0,119940.0,0.3882081]
[1754922612733,2.81951295,119950.0,119940.0,0.3882081]
[1754922613439,2.46713702,119950.0,119940.0,0.3882081]
[1754922613742,2.84924295,119950.0,119940.0,0.3882081]
[1754922614351,2.04596295,119950.0,119940.0,0.3882081]
[1754922614537,2.84892295,119950.0,119940.0,0.3882081]
[1754922615046,2.81482295,119950.0,119940.0,0.3882081]
[1754922615646,2.43271702,119950.0,119940.0,0.3882081]
[1754922615838,2.81482295,119950.0,119940.0,0.3882081]
[1754922620748,2.43271702,119950.0,119940.0,0.3882081]
[1754922620948,2.81482295,119950.0,119940.0,0.3882081]
[1754922621851,2.81482295,119950.0,119940.0,0.2707581]
[1754922622040,2.81482295,119950.0,119940.0,0.3462981]
[1754922622244,2.43271702,119950.0,119940.0,0.3882081]
[1754922622444,2.81482295,119950.0,119940.0,0.3882081]
[1754922623252,2.81482295,119950.0,119940.0,0.58283115]
[1754922623749,2.43271702,119950.0,119940.0,0.58283115]
[1754922623956,2.81482295,119950.0,119940.0,0.58283115]
[1754922624555,2.43271702,119950.0,119940.0,0.58283115]
[1754922624742,2.81482295,119950.0,119940.0,0.58283115]
[1754922625154,2.81482295,119950.0,119940.0,0.43526115]
[1754922625851,2.81482295,119950.0,119940.0,0.3049181]
[1754922626154,2.81482295,119950.0,119940.0,0.3678481]
[1754922626454,2.43271702,119950.0,119940.0,0.3882081]
[1754922626654,2.81482295,119950.0,119940.0,0.3882081]
[1754922627454,2.81482295,119950.0,119940.0,0.1727896]
[1754922627643,2.81482295,119950.0,119940.0,0.1]
[1754922627644,2.98150153,119950.0,119940.0,0.1]
[1754922627956,0.0833955,119930.0,119920.0,0.2395444]
[1754922628254,2.42729736,119930.0,119920.0,0.2395444]
[1754922629052,2.04519143,119930.0,119920.0,0.2395444]
[1754922629353,2.04529143,119930.0,119920.0,0.2396444]
[1754922629547,2.04529143,119930.0,119920.0,0.0001]
[1754922629749,2.42739736,119930.0,119920.0,0.0021]
[1754922629950,0.0834094,119910.0,119900.0,0.02981]
[1754922630149,2.04286533,119910.0,119900.0,0.0870596]
[1754922630952,2.04295105,119910.0,119900.0,0.0870596]
[1754922631162,2.10811275,119910.0,119900.0,0.0871596]
[1754922631348,2.1173479,119910.0,119900.0,0.0921596]
[1754922631748,2.11742053,119910.0,119900.0,0.0921596]
[1754922632054,2.1163479,119910.0,119900.0,0.0901596]
[1754922632453,2.1183479,119910.0,119900.0,0.0001]
[1754922632748,2.1183479,119910.0,119900.0,0.0573496]
[1754922632952,2.11844776,119910.0,119900.0,0.0573496]
[1754922633259,2.1183479,119910.0,119900.0,0.0871596]
[1754922633652,2.1183479,119910.0,119900.0,0.170576]
[1754922633855,1.73624197,119910.0,119900.0,0.285846]
[1754922634855,1.73632489,119910.0,119900.0,0.285846]
[1754922635049,0.79718481,119910.0,119900.0,0.66795193]
[1754922635254,0.86903589,119910.0,119900.0,1.07875193]
[1754922635454,0.80865589,119910.0,119900.0,1.24545193]
[1754922635661,0.77688589,119910.0,119900.0,1.60625193]
[1754922636052,0.77688589,119910.0,119900.0,1.224146]
[1754922636253,0.71963629,119910.0,119900.0,1.54900233]
[1754922636459,0.71963629,119910.0,119900.0,1.58120233]
[1754922636660,0.00017589,119910.0,119900.0,1.58130233]
[1754922636852,0.6144129,119940.0,119930.0,0.0833955]
[1754922637056,1.3695885,119940.0,119930.0,0.58077143]
[1754922637262,1.3695885,119940.0,119930.0,0.61058143]
[1754922637464,1.37812441,119940.0,119930.0,0.2284755]
[1754922637664,1.37812441,119940.0,119930.0,0.3283755]
[1754922637865,1.37822868,119940.0,119930.0,0.3283755]
[1754922638163,1.85301461,119940.0,119930.0,0.37774805]
[1754922638456,1.85301461,119940.0,119910.0,0.2395444]
[1754922638457,0.0834024,119920.0,119910.0,0.2395444]
[1754922638651,1.7514124,119920.0,119910.0,0.3229538]
[1754922638851,1.7514124,119920.0,119910.0,0.4680338]
[1754922639055,2.13351833,119920.0,119910.0,0.4680338]
[1754922639256,1.7514124,119920.0,119910.0,0.4680338]
[1754922639458,0.95061064,119920.0,119910.0,0.4681338]
[1754922639658,1.75125064,119920.0,119910.0,0.2285894]
[1754922639858,2.13335657,119920.0,119910.0,0.2285892]
[1754922640067,2.13335657,119920.0,119910.0,0.0835092]
[1754922640366,2.20264468,119920.0,119910.0,0.0835094]
[1754922641167,1.75425064,119920.0,119910.0,0.0835094]
[1754922641667,1.75425064,119920.0,119910.0,0.0001]
[1754922641858,1.75425064,119920.0,119910.0,0.0835094]
[1754922642264,1.75425064,119920.0,119910.0,0.1158494]
[1754922645171,1.75425064,119920.0,119910.0,0.0835096]
[1754922645370,2.20264468,119920.0,119910.0,0.0835096]
[1754922645666,2.20264468,119920.0,119910.0,0.1158496]
[1754922645867,2.20264468,119920.0,119910.0,0.1620596]
[1754922646064,0.12418824,119920.0,119910.0,0.67698364]
[1754922646265,0.80219824,119920.0,119910.0,0.67698364]
[1754922646964,0.80219824,119920.0,119910.0,0.84376764]
[1754922647162,0.80219824,119920.0,119910.0,1.20456764]
[1754922647360,0.80119824,119920.0,119910.0,1.25456764]
[1754922647555,0.70673824,119920.0,119910.0,1.25446764]
[1754922647770,0.06789394,119940.0,119910.0,1.25446764]
[1754922647771,0.09699394,119940.0,119930.0,0.0833957]
[1754922648066,0.82826,119940.0,119930.0,0.98796974]
[1754922648364,0.9116487,119940.0,119930.0,0.98796974]
[1754922648562,1.02801969,119940.0,119930.0,0.1787757]
[1754922648867,1.02801969,119940.0,119930.0,0.1788757]
[1754922649371,1.09544673,119940.0,119930.0,0.1788757]
[1754922650360,1.45624673,119940.0,119930.0,0.1788757]
[1754922650658,1.45724673,119940.0,119930.0,0.1788757]
[1754922651669,1.45724673,119940.0,119930.0,0.0998957]
[1754922651961,1.45724673,119940.0,119930.0,0.1322357]
[1754922652169,1.45724673,119940.0,119930.0,0.1561857]
[1754922652866,1.45724673,119940.0,119930.0,0.1788757]
[1754922654867,1.37385803,119940.0,119930.0,0.1788757]
[1754922655667,1.45724673,119940.0,119930.0,0.1788757]
[1754922656464,1.45724673,119940.0,119930.0,0.1238457]
[1754922656661,1.45724673,119940.0,119930.0,0.0834957]
[1754922658364,1.45724673,119940.0,119930.0,0.1271957]
[1754922658566,1.45724673,119940.0,119930.0,0.1610957]
[1754922658969,1.45724673,119940.0,119930.0,0.1830757]
[1754922659766,1.45724673,119940.0,119930.0,0.0998957]
[1754922661172,1.45724673,119940.0,119930.0,0.1610957]
[1754922661365,0.42928803,119940.0,119930.0,0.63146974]
[1754922661572,1.01841803,119940.0,119930.0,0.99579974]
[1754922661767,0.92025803,119940.0,119930.0,0.99799974]
[1754922661969,0.89753803,119940.0,119930.0,1.16475974]
[1754922663267,3e-08,119940.0,119930.0,1.16575974]
[1754922663566,0.05934,119970.0,119960.0,0.0833748]
[1754922663766,0.79764,119970.0,119960.0,1.04708884]
[1754922663966,0.89319,119970.0,119960.0,1.04708884]
[1754922664166,0.91852,119970.0,119960.0,1.04708884]
[1754922664366,0.91859605,119970.0,119960.0,1.04708884]
[1754922664967,0.91859605,119970.0,119960.0,0.6026948]
[1754922665269,0.91859605,119970.0,119960.0,1.05418884]
[1754922665571,1.01776299,119970.0,119960.0,1.05418884]
[1754922665875,1.01776299,119970.0,119960.0,1.05718884]
[1754922666567,0.22012299,119970.0,119960.0,1.05718884]
[1754922666873,0.89684299,119970.0,119960.0,1.05718884]
[1754922667470,0.99239299,119970.0,119960.0,0.2152848]
[1754922667677,1.01772299,119970.0,119960.0,0.1101948]
[1754922667871,1.10109079,119970.0,119960.0,0.1440948]
[1754922668068,1.01772299,119970.0,119960.0,0.2152848]
[1754922668271,1.01772299,119970.0,119960.0,0.2479948]
[1754922668474,1.01772299,119970.0,119960.0,0.6087948]
[1754922668771,5e-08,119970.0,119960.0,1.14054648]
[1754922668974,5e-08,119980.0,119960.0,1.55737838]
[1754922669176,5e-08,119980.0,119970.0,0.98647184]
[1754922669376,5e-08,119980.0,119970.0,1.84460184]
[1754922669573,5e-08,119980.0,119970.0,2.01130584]
[1754922669771,0.05934,120010.0,119990.0,0.2500573]
[1754922669969,0.12088,120010.0,120000.0,1.04706104]
[1754922670169,0.12088,120010.0,120000.0,0.598667]
[1754922670170,0.1209604,120010.0,120000.0,0.598667]
[1754922670675,0.1209604,120010.0,120000.0,1.04706104]
[1754922670875,0.1209604,120010.0,120000.0,0.598667]
[1754922671177,0.1209604,120010.0,120000.0,1.04706104]
[1754922671974,0.0001,120020.0,120000.0,1.66214478]
[1754922672177,0.86616,120020.0,120010.0,0.53805]
[1754922672369,0.91339,120020.0,120010.0,1.04705404]
[1754922672571,0.95293,120020.0,120010.0,0.59866]
[1754922673076,0.95299176,120020.0,120010.0,0.59866]
[1754922673277,0.95299176,120020.0,120010.0,1.04705404]
[1754922673679,0.95999176,120020.0,120010.0,1.05015404]
[1754922673868,0.95999176,120020.0,120010.0,0.08644]
[1754922674067,1.04332476,120020.0,120010.0,0.08644]
[1754922674471,1.04332476,120020.0,120010.0,0.15897]
[1754922674669,0.95999176,120020.0,120010.0,0.66737404]
[1754922675277,0.95999176,120020.0,120010.0,0.68935404]
[1754922675580,1.04332476,120020.0,120010.0,0.24096]
[1754922675776,1.04332476,120020.0,120010.0,0.68935404]
[1754922676076,1.04332476,120020.0,120010.0,0.24096]
[1754922676282,1.04332476,120020.0,120010.0,0.19168]
[1754922676680,0.95999176,120020.0,120010.0,0.68935404]
[1754922677074,0.95999176,120020.0,120010.0,0.24096]
[1754922677373,0.95999176,120020.0,120010.0,0.68935404]
[1754922677573,0.95999176,120020.0,120010.0,0.24096]
[1754922677977,0.95999176,120020.0,120010.0,0.68935404]
[1754922678177,0.95999176,120020.0,120010.0,1.05015404]
[1754922679484,0.95999176,120020.0,120010.0,0.60176]
[1754922679676,0.95999176,120020.0,120010.0,1.05015404]
[1754922681384,0.95999176,120020.0,120010.0,0.60176]
[1754922681683,0.95999176,120020.0,120010.0,1.05015404]
[1754922681879,0.95999176,120020.0,120010.0,0.60176]
[1754922682082,0.95999176,120020.0,120010.0,1.05015404]
[1754922682280,6e-08,120020.0,120010.0,1.96831204]
[1754922682578,6e-08,120030.0,120010.0,2.10163495]
[1754922682778,6e-08,120030.0,120020.0,1.04704704]
[1754922683285,8e-08,120030.0,120020.0,1.21367904]
[1754922683474,0.8771,120060.0,120040.0,0.2499529]
[1754922683680,0.8771,120060.0,120050.0,1.04702624]
[1754922683877,0.8771,120060.0,120050.0,1.05556757]
[1754922684073,1.15208,120070.0,120050.0,1.22218767]
[1754922684279,0.02533,120090.0,120080.0,0.0832914]
[1754922684473,0.8738921,120090.0,120080.0,0.69826394]
[1754922684684,0.8738921,120090.0,120080.0,0.3824099]
[1754922684985,0.9646021,120090.0,120080.0,0.83080394]
[1754922685195,0.9646021,120090.0,120080.0,0.7432099]
[1754922685383,0.2356065,120090.0,120080.0,0.7432099]
[1754922685589,0.2356065,120090.0,120080.0,0.3212099]
[1754922685884,0.2356065,120090.0,120080.0,0.2498699]
[1754922686184,1.0505665,120090.0,120080.0,0.3557699]
[1754922686886,1.0505665,120090.0,120080.0,0.3647699]
[1754922687281,1.04480054,120090.0,120080.0,0.1981913]
[1754922687479,0.5964065,120090.0,120080.0,0.1981913]
[1754922687981,0.2356065,120090.0,120080.0,0.64658534]
[1754922688187,2.0964065,120090.0,120080.0,0.1981913]
[1754922688375,2.9108065,120090.0,120080.0,0.1981913]
[1754922688580,2.54480054,120090.0,120080.0,0.1981913]
[1754922688786,2.9115665,120090.0,120080.0,0.1981913]
[1754922688988,2.0964065,120090.0,120080.0,0.1981913]
[1754922689285,2.9118465,120090.0,120080.0,0.1981903]
[1754922689586,2.0964065,120090.0,120080.0,0.1981903]
[1754922689788,2.9170065,120090.0,120080.0,0.1981903]
[1754922689981,2.0964065,120090.0,120080.0,0.1981903]
[1754922690180,2.9173665,120090.0,120080.0,0.1981903]
[1754922690382,2.0964065,120090.0,120080.0,0.1981903]
[1754922690677,0.1269921,120090.0,120080.0,1.00738434]
[1754922690882,0.9729221,120090.0,120080.0,1.16051434]
[1754922691079,0.1520821,120090.0,120080.0,1.16051434]
[1754922691488,0.9734421,120090.0,120080.0,1.16051434]
[1754922691885,1.0567234,120090.0,120080.0,1.16051434]
[1754922692089,1.0567234,120090.0,120080.0,0.79971434]
[1754922692290,0.2353634,120090.0,120080.0,0.2159503]
[1754922692490,1.0567634,120090.0,120080.0,0.1981903]
[1754922692990,1.0567634,120090.0,120080.0,0.77815434]
[1754922693290,0.2353634,120090.0,120080.0,0.77815434]
[1754922693487,0.1269921,120090.0,120080.0,1.16051434]
[1754922693787,0.8821721,120090.0,120080.0,1.16051434]
[1754922694090,0.9735621,120090.0,120080.0,1.16051434]
[1754922694679,0.9484721,120090.0,120080.0,1.16051434]
[1754922695086,0.9484721,120090.0,120080.0,0.7121203]
[1754922695286,0.1530021,120090.0,120080.0,1.16051434]
[1754922695592,0.9174621,120090.0,120080.0,1.10565434]
[1754922695986,0.8589321,120090.0,120080.0,1.10565434]
[1754922696290,7.21e-05,120090.0,120080.0,1.10565434]
[1754922696590,0.0722121,120090.0,120080.0,1.18892868]
[1754922696785,0.9176621,120090.0,120080.0,0.6572603]
[1754922696984,0.0973021,120090.0,120080.0,1.10565434]
[1754922697179,7.21e-05,120090.0,120080.0,1.10565434]
[1754922697586,7.21e-05,120090.0,120080.0,1.09665434]
[1754922697790,7.21e-05,120090.0,120080.0,1.09965434]
[1754922698193,0.0803521,120090.0,120080.0,1.09965434]
[1754922698393,0.0973021,120090.0,120080.0,1.09965434]
[1754922698692,0.0973021,120090.0,120080.0,1.09365434]
[1754922698985,0.9167821,120090.0,120080.0,0.6452603]
[1754922699180,0.9167821,120090.0,120080.0,1.09365434]
[1754922699694,1.0000631,120090.0,120080.0,0.6452603]
[1754922699992,1.0007831,120090.0,120080.0,0.73285434]
[1754922700192,0.9175021,120090.0,120080.0,0.6452603]
[1754922700394,0.9175021,120090.0,120080.0,1.09365434]
[1754922700584,0.8924121,120090.0,120080.0,1.09365434]
[1754922700784,0.0387721,120090.0,120080.0,1.09365434]
[1754922700984,0.8587321,120090.0,120080.0,1.09365434]
[1754922701183,0.0218221,120090.0,120080.0,1.09365434]
[1754922701484,7.21e-05,120090.0,120080.0,1.09365434]
[1754922702100,0.0335121,120090.0,120080.0,0.6452603]
[1754922702291,0.0335121,120090.0,120080.0,1.09365434]
[1754922702994,7.21e-05,120090.0,120080.0,1.09365434]
[1754922703395,7.21e-05,120090.0,120080.0,0.6452603]
[1754922703693,7.21e-05,120090.0,120080.0,1.09365434]
[1754922703894,0.0335121,120090.0,120080.0,1.09365434]
[1754922704284,0.9183821,120090.0,120080.0,1.09365434]
[1754922705397,0.9185421,120090.0,120080.0,0.73285434]
[1754922705596,0.1805843,120090.0,120080.0,0.1861903]
[1754922705792,0.5413843,120090.0,120080.0,0.1029]
[1754922706097,1.81085834,120090.0,120080.0,0.1029]
[1754922706294,0.5413843,120090.0,120080.0,0.1861891]
[1754922706490,1.0015043,120090.0,120080.0,0.65234314]
[1754922706708,0.0973021,120090.0,120080.0,1.09365314]
[1754922706894,1.0014643,120090.0,120080.0,0.6452591]
[1754922707090,0.9181821,120090.0,120080.0,1.09365314]
[1754922708091,0.9181821,120090.0,120080.0,0.6452591]
[1754922708286,0.8930921,120090.0,120080.0,1.09365314]
[1754922708496,7.21e-05,120090.0,120080.0,1.09365314]
[1754922709591,0.8253121,120090.0,120080.0,1.09365314]
[1754922709791,0.8805021,120090.0,120080.0,1.09365314]
[1754922709992,0.9225421,120090.0,120080.0,1.09365314]
[1754922710195,0.9224621,120090.0,120080.0,1.09365314]
[1754922710394,0.8465821,120090.0,120080.0,1.09365314]
[1754922710595,7.21e-05,120090.0,120080.0,1.09365314]
[1754922711701,7.21e-05,120090.0,120080.0,0.6452591]
[1754922711900,7.21e-05,120090.0,120080.0,1.09365314]
[1754922712101,0.0218221,120090.0,120080.0,1.09365314]
[1754922712302,0.0552621,120090.0,120080.0,1.09365314]
[1754922712504,0.1805831,120090.0,120080.0,1.09365314]
[1754922712805,0.9207821,120090.0,120080.0,1.09365314]
[1754922713100,1.0039431,120090.0,120080.0,1.09365314]
[1754922713495,0.9201821,120090.0,120080.0,1.09365314]
[1754922713697,0.8950921,120090.0,120080.0,1.09365314]
[1754922713896,0.1805837,120090.0,120080.0,0.6452591]
[1754922714101,0.9782137,120090.0,120080.0,0.99538314]
[1754922714302,0.9200221,120090.0,120080.0,1.09365314]
[1754922714496,0.9060737,120090.0,120080.0,1.09365314]
[1754922714702,0.9399537,120090.0,120080.0,1.09365314]
[1754922714899,0.8566721,120090.0,120080.0,1.09365314]
[1754922715100,1.0036236,120090.0,120080.0,1.09365314]
[1754922717103,0.1805836,120090.0,120080.0,1.09365314]
[1754922717304,1.0037036,120090.0,120080.0,1.09365314]
[1754922717905,0.1805836,120090.0,120080.0,1.09365314]
[1754922718105,1.0029036,120090.0,120080.0,0.6452591]
[1754922718303,1.0029036,120090.0,120080.0,1.09365314]
[1754922719003,0.1805836,120090.0,120080.0,0.5469891]
[1754922719302,1.0024636,120090.0,120080.0,0.5469891]
[1754922719498,1.0024636,120090.0,120080.0,1.05487314]
[1754922719499,1.0023836,120090.0,120080.0,1.05487314]
[1754922719805,1.0023836,120090.0,120080.0,1.07208314]
[1754922720101,1.0023836,120090.0,120080.0,0.6236891]
[1754922721201,1.0019436,120090.0,120080.0,0.4637]
[1754922721396,0.1805836,120090.0,120080.0,0.4637]
[1754922721602,0.5413836,120090.0,120080.0,0.1029]
[1754922721904,1.3628236,120090.0,120080.0,0.1029]
[1754922722110,0.5413836,120090.0,120080.0,0.1029]
[1754922722301,1.3627036,120090.0,120080.0,0.1029]
[1754922722501,0.5413836,120090.0,120080.0,0.1029]
[1754922722702,1.3625836,120090.0,120080.0,0.1029]
[1754922722897,1.3625836,120090.0,120080.0,0.1861878]
[1754922722898,1.0018636,120090.0,120080.0,0.1861878]
[1754922723206,0.1805836,120090.0,120080.0,0.71128184]
[1754922723507,1.0014236,120090.0,120080.0,0.73341184]
[1754922723707,0.1805836,120090.0,120080.0,0.73341184]
[1754922723908,1.0033836,120090.0,120080.0,0.73341184]
[1754922724110,1.0033836,120090.0,120080.0,1.09421184]
[1754922724709,1.0033836,120090.0,120080.0,0.99538184]
[1754922725108,1.0033836,120090.0,120080.0,0.5469878]
[1754922725307,1.0033836,120090.0,120080.0,0.6236878]
[1754922725706,1.0033836,120090.0,120080.0,0.6458178]
[1754922727513,1.0033836,120090.0,120080.0,1.09421184]
[1754922728113,0.9791736,120090.0,120080.0,1.09421184]
[1754922728316,1.0050736,120090.0,120080.0,1.09421184]
[1754922728909,0.9455336,120090.0,120080.0,1.09421184]
[1754922729214,0.9791729,120090.0,120080.0,1.09421184]
[1754922729707,1.0050729,120090.0,120080.0,1.09421184]
[1754922730917,1.0050729,120090.0,120080.0,0.6458178]
[1754922731114,1.0050729,120090.0,120080.0,1.09421184]
[1754922731304,0.1815929,120090.0,120080.0,0.5469876]
[1754922731711,1.0035929,120090.0,120080.0,0.4637]
[1754922732413,1.0035929,120090.0,120080.0,0.5469874]
[1754922732806,1.3643929,120090.0,120080.0,0.1029]
[1754922733609,0.1815929,120090.0,120080.0,1.09421134]
[1754922733814,1.0025129,120090.0,120080.0,1.09421134]
[1754922734419,0.1815929,120090.0,120080.0,1.09421134]
[1754922734618,1.0040729,120090.0,120080.0,1.09421134]
[1754922736912,1.0040729,120090.0,120080.0,0.6458173]
[1754922737105,1.0040729,120090.0,120080.0,1.09421134]
[1754922738317,1.0031529,120090.0,120080.0,1.07208134]
[1754922739729,0.1815929,120090.0,120080.0,1.07208134]
[1754922740023,1.0030729,120090.0,120080.0,0.6236873]
[1754922740224,1.0030729,120090.0,120080.0,1.28785879]
[1754922741122,1.0030729,120090.0,120080.0,1.28779904]
[1754922741322,1.0016329,120090.0,120080.0,1.28779904]
[1754922741723,1.0016329,120090.0,120080.0,1.22830904]
[1754922741920,0.1815929,120090.0,120080.0,1.28779904]
[1754922742120,1.0011929,120090.0,120080.0,1.28779904]
[1754922743824,0.9624929,120090.0,120080.0,1.28779904]
[1754922744023,1.0021429,120090.0,120080.0,1.28779904]
[1754922744924,0.1825429,120090.0,120080.0,1.28779904]
[1754922745119,1.0007429,120090.0,120080.0,1.28779904]
[1754922745627,0.1825429,120090.0,120080.0,1.28779904]
[1754922745823,1.0002629,120090.0,120080.0,1.28779904]
[1754922746219,1.0002629,120090.0,120080.0,1.02712301]
[1754922746821,0.0833529,120090.0,120080.0,1.02712301]
[1754922747017,0.8177921,120090.0,120080.0,1.40848847]
[1754922747320,0.8171121,120090.0,120080.0,1.40848847]
[1754922748923,7.21e-05,120090.0,120080.0,1.40848847]
[1754922749121,2.7959859,120110.0,120100.0,0.0832728]
[1754922749324,2.7959859,120110.0,120100.0,0.86535826]
[1754922749632,3.6131459,120110.0,120100.0,0.5427928]
[1754922749821,3.6131459,120110.0,120100.0,0.92415826]
[1754922750021,3.61329744,120110.0,120100.0,0.56335826]
[1754922750218,3.61329744,120110.0,120100.0,0.92415826]
[1754922750528,3.61329744,120110.0,120100.0,0.75807783]
[1754922750529,3.61281744,120110.0,120100.0,0.75807783]
[1754922750720,3.61281744,120110.0,120100.0,0.76207783]
[1754922750927,3.61281744,120110.0,120100.0,1.12287783]
[1754922751117,1.58333744,120110.0,120100.0,1.22277783]
[1754922751321,1.50007154,120110.0,120100.0,1.22277783]
[1754922751522,2.31663154,120110.0,120100.0,1.02805826]
[1754922752021,7.154e-05,120110.0,120100.0,1.17769971]
[1754922752223,0.81651154,120110.0,120100.0,1.26096019]
[1754922752425,0.81651154,120110.0,120100.0,1.27096019]
[1754922752931,0.85021154,120110.0,120100.0,1.27096019]
[1754922753136,0.93347754,120110.0,120100.0,1.27096019]
[1754922753433,0.18139754,120110.0,120100.0,1.26496019]
[1754922753628,0.99779754,120110.0,120100.0,1.03205826]
[1754922754027,0.18139754,120110.0,120100.0,0.6506928]
[1754922754225,0.99755754,120110.0,120100.0,0.97325826]
[1754922754536,0.18239754,120110.0,120100.0,1.02805836]
[1754922755032,0.99839754,120110.0,120100.0,1.02805836]
[1754922755424,0.99827754,120110.0,120100.0,1.02805836]
[1754922755625,1.04938754,120110.0,120100.0,1.06016836]
[1754922756233,1.04906754,120110.0,120100.0,1.06016836]
[1754922756425,0.23350754,120110.0,120100.0,1.06016836]
[1754922756628,1.04850754,120110.0,120100.0,1.20963763]
[1754922756826,0.23350754,120110.0,120100.0,1.20963763]
[1754922757028,1.04910754,120110.0,120100.0,1.20963763]
[1754922757434,1.04910754,120110.0,120100.0,1.06016836]
[1754922757633,0.23350754,120110.0,120100.0,1.06016836]
[1754922757838,0.89961734,120110.0,120100.0,1.06016836]
[1754922758137,0.81635154,120110.0,120100.0,1.06016836]
[1754922758435,0.81635154,120110.0,120100.0,0.6788029]
[1754922758733,0.81635154,120110.0,120100.0,1.27622793]
[1754922759330,0.81635154,120110.0,120100.0,1.28469973]
[1754922760136,0.81635154,120110.0,120100.0,1.08998016]
[1754922760532,0.59244268,120140.0,120120.0,0.0832589]
[1754922760739,0.3156687,120140.0,120130.0,0.61678736]
[1754922760937,1.1305487,120140.0,120130.0,0.97758736]
[1754922761132,1.1305487,120140.0,120130.0,1.17230693]
[1754922761640,1.13062253,120140.0,120130.0,0.79094147]
[1754922761832,1.13018253,120140.0,120130.0,0.81150693]
[1754922762333,1.13018253,120140.0,120130.0,0.61678736]
[1754922762532,1.13018253,120140.0,120130.0,0.76607302]
[1754922762937,1.13118253,120140.0,120130.0,0.76607302]
[1754922763538,1.13118253,120140.0,120130.0,0.38470756]
[1754922763742,0.31674253,120140.0,120130.0,0.76607302]